bitfinex/quotes_SOLUSD_20240624
["timestamp","ask_amount","ask_price","bid_price","bid_amount"]
[1719240772528,30.73,128.15,128.11,100.0]
[1719240772740,30.73,128.15,128.09,100.0]
[1719240773415,45.0,128.14,128.07,100.0]
[1719240773811,30.73,128.11,128.07,100.0]
[1719240774038,30.73,128.11,128.06,7.798678]
[1719240774607,30.73,128.11,128.07,100.0]
[1719240777232,30.73,128.16,128.07,100.0]
[1719240777919,45.0,128.15,128.07,100.0]
[1719240778531,45.0,128.15,128.09,100.0]
[1719240780537,0.67709193,128.1,128.09,100.0]
[1719240780726,0.67709193,128.1,128.07,100.0]
[1719240781246,0.67709193,128.1,128.06,7.798678]
[1719240783435,30.73,128.08,128.06,7.798678]
[1719240783644,30.73,128.08,127.99,121.3]
[1719240783944,45.0,128.07,127.99,121.3]
[1719240784124,45.0,128.07,128.01,100.0]
[1719240784533,45.0,128.07,127.99,106.1389]
[1719240784728,30.73,128.04,127.96,115.9856]
[1719240785255,30.73,128.04,127.98,100.0]
[1719240785542,30.73,128.04,127.96,100.0]
[1719240785720,30.73,128.04,127.98,100.0]
[1719240787242,30.73,128.04,128.0,100.0]
[1719240787928,30.73,128.04,127.97,100.0]
[1719240788444,30.73,128.04,127.99,100.0]
[1719240790043,30.73,128.04,128.01,100.0]
[1719240790246,39.21429193,128.1,128.03,100.0]
[1719240792944,45.0,128.09,128.01,100.0]
[1719240793129,30.73,128.06,128.01,100.0]
[1719240793444,30.73,128.06,127.99,100.0]
[1719240794346,30.73,128.06,128.01,100.0]
[1719240794551,30.73,128.06,127.97,100.0]
[1719240794726,45.0,128.05,127.97,100.0]
[1719240795131,45.0,128.05,127.95,106.5859]
[1719240795345,30.73,128.02,127.95,100.0]
[1719240795553,30.73,128.02,127.91,106.141]
[1719240795554,45.0,128.01,127.91,106.141]
[1719240795737,45.0,128.01,127.93,100.0]
[1719240797045,45.0,128.01,127.95,100.0]
[1719240797350,30.73,128.02,127.95,100.0]
[1719240797534,7.8072,128.03,127.95,100.0]
[1719240797726,45.0,128.02,127.95,100.0]
[1719240798522,45.0,128.02,127.97,100.0]
[1719240799057,7.8072,128.03,127.97,100.0]
[1719240799639,7.8072,128.03,127.95,100.0]
[1719240800327,45.0,128.02,127.94,100.0]
[1719240800547,0.67709193,127.95,127.94,100.0]
[1719240803655,38.87547391,128.04,128.0,100.0]
[1719240803870,7.8072,128.07,128.02,100.0]
[1719240804766,8.14489681,128.08,128.05,100.0]
[1719240805133,39.214,128.1,128.05,100.0]
[1719240805856,39.214,128.1,128.03,100.0]
[1719240806041,39.214,128.1,128.01,100.0]
[1719240806229,45.0,128.09,128.01,100.0]
[1719240806430,30.73,128.06,128.01,100.0]
[1719240806650,30.73,128.06,127.99,100.0]
[1719240806862,30.73,128.06,128.02,100.0]
[1719240807329,30.73,128.06,127.99,100.0]
[1719240807529,30.73,128.06,128.01,100.0]
[1719240808560,30.73,128.06,128.05,100.0]
[1719240808857,45.0,128.09,128.05,100.0]
[1719240809736,39.214,128.1,128.05,100.0]
[1719240809933,39.214,128.1,128.03,100.0]
[1719240810145,39.214,128.1,128.01,100.0]
[1719240810456,69.944,128.1,128.01,100.0]
[1719240810751,77.7504,128.1,127.99,100.0]
[1719240810955,30.73,128.06,128.01,100.0]
[1719240814255,30.73,128.06,128.03,100.0]
[1719240814755,39.214,128.1,128.03,100.0]
[1719240814948,39.214,128.1,128.05,100.0]
[1719240817561,30.73,128.1,128.07,100.0]
[1719240817764,8.484,128.13,128.07,100.0]
[1719240817969,30.73,128.12,128.07,100.0]
[1719240818267,8.13652407,128.14,128.07,100.0]
[1719240818467,31.261445,128.15,128.07,100.0]
[1719240818854,31.261445,128.15,128.09,100.0]
[1719240819258,8.13607863,128.16,128.13,100.0]
[1719240819455,30.73,128.18,128.13,100.0]
[1719240819971,30.73,128.18,128.11,100.0]
[1719240820660,0.78057919,128.12,128.11,100.0]
[1719240822575,0.78057919,128.12,128.11,122.4616]
[1719240823745,0.78057919,128.12,128.11,100.0]
[1719240823949,0.78057919,128.12,128.09,100.0]
[1719240825148,0.78057919,128.12,128.11,100.0]
[1719240826367,0.78057919,128.12,128.09,100.0]
[1719240827756,0.78057919,128.12,128.11,100.0]
[1719240828578,8.13795192,128.19,128.15,100.0]
[1719240828779,30.73,128.22,128.17,100.0]
[1719240828968,30.73,128.22,128.19,100.0]
[1719240830574,39.36277602,128.25,128.19,100.0]
[1719240830973,39.36277602,128.25,128.16,100.0]
[1719240831176,30.73,128.22,128.16,100.0]
[1719240832776,30.73,128.22,128.14,15.8793]
[1719240832777,30.73,128.22,128.14,115.8793]
[1719240832977,30.73,128.22,128.14,100.0]
[1719240833293,45.0,128.21,128.14,100.0]
[1719240834089,30.73,128.22,128.16,100.0]
[1719240836873,30.73,128.22,128.14,100.0]
[1719240839482,45.0,128.21,128.14,100.0]
[1719240839879,38.85672847,128.22,128.17,100.0]
[1719240840088,30.73,128.22,128.19,100.0]
[1719240840400,9.2643,128.27,128.21,100.0]
[1719240840696,0.77997037,128.22,128.21,100.0]
[1719240842196,0.77997037,128.22,128.17,100.0]
[1719240842690,0.77997037,128.22,128.15,100.0]
[1719240842879,45.77997037,128.22,128.15,100.0]
[1719240843088,45.77997037,128.22,128.13,100.0]
[1719240843603,30.73,128.19,128.13,100.0]
[1719240843809,45.77997037,128.22,128.15,100.0]
[1719240846191,53.57907037,128.22,128.13,100.0]
[1719240846375,30.73,128.19,128.13,100.0]
[1719240846775,30.73,128.19,128.11,121.8012]
[1719240847701,30.73,128.19,128.13,100.0]
[1719240849418,30.73,128.15,128.08,100.0]
[1719240849708,30.73,128.15,128.07,6.0028]
[1719240849907,45.0,128.14,128.07,6.0028]
[1719240850587,45.0,128.14,128.08,100.0]
[1719240850788,45.0,128.14,127.98,266.2]
[1719240850789,30.73,128.11,128.03,6.5676]
[1719240851118,30.73,128.11,128.04,100.0]
[1719240851282,38.87542222,128.11,128.03,6.5676]
[1719240851919,45.0,128.1,128.02,100.0]
[1719240853009,30.73,128.07,128.02,100.0]
[1719240853307,45.0,128.1,128.02,100.0]
[1719240854188,45.0,128.1,128.0,106.1561]
[1719240854510,45.0,128.1,128.02,100.0]
[1719240854694,45.0,128.1,128.0,106.1561]
[1719240854888,30.73,128.07,128.0,106.1561]
[1719240855393,30.73,128.07,127.98,115.6524]
[1719240855592,45.0,128.06,128.0,100.0]
[1719240855779,45.0,128.06,127.98,115.6524]
[1719240857201,39.9943,128.07,128.0,100.0]
[1719240859610,39.9943,128.07,128.02,100.0]
[1719240859789,9.2643,128.07,128.02,100.0]
[1719240860509,0.77997037,128.03,128.02,100.0]
[1719240862009,0.77997037,128.03,128.0,100.0]
[1719240862221,0.77997037,128.03,127.95,100.0]
[1719240862588,53.59077037,128.03,127.95,100.0]
[1719240862804,45.77997037,128.03,127.95,100.0]
[1719240864000,30.73,128.0,127.91,122.7459]
[1719240864193,39.9943,128.0,127.91,122.7459]
[1719240865912,39.9943,128.0,127.93,100.0]
[1719240867790,39.9943,128.0,127.95,100.0]
[1719240867990,55.04427037,128.03,127.95,100.0]
[1719240868895,86.33399937,128.03,127.95,100.0]
[1719240869307,55.04427037,128.03,127.95,100.0]
[1719240869608,10.04427037,128.03,127.97,100.0]
[1719240870524,0.77997037,128.03,128.0,100.0]
[1719240871713,0.77997037,128.03,127.96,100.0]
[1719240872017,30.73,128.02,127.98,100.0]
[1719240872215,0.77997037,128.03,127.93,21.6138]
[1719240872216,8.92334031,128.03,128.0,100.0]
[1719240872395,0.77997037,128.03,128.0,100.0]
[1719240873223,0.77997037,128.03,127.98,100.0]
[1719240873526,0.77997037,128.03,128.0,100.0]
[1719240874431,0.77997037,128.03,128.02,100.0]
[1719240876133,30.73,128.16,128.09,100.0]
[1719240876421,9.2643,128.13,128.09,100.0]
[1719240877825,38.86640782,128.16,128.09,100.0]
[1719240878618,38.86640782,128.16,128.07,100.0]
[1719240878802,45.0,128.15,128.07,100.0]
[1719240879133,45.0,128.15,128.09,100.0]
[1719240879612,38.86640782,128.16,128.12,100.0]
[1719240879801,38.86640782,128.16,128.14,100.0]
[1719240879802,8.13640782,128.16,128.14,100.0]
[1719240879995,10.044,128.21,128.14,100.0]
[1719240880211,39.38262637,128.2,128.14,100.0]
[1719240880517,0.78039645,128.15,128.14,100.0]
[1719240880713,0.78039645,128.15,128.1,100.0]
[1719240881309,0.78039645,128.15,128.08,115.0255]
[1719240881623,30.73,128.14,128.08,100.0]
[1719240881811,30.73,128.14,128.1,100.0]
[1719240882427,30.73,128.14,128.08,100.0]
[1719240882925,45.0,128.13,128.06,106.5946]
[1719240883103,30.73,128.14,128.06,106.5946]
[1719240883415,30.73,128.14,128.08,100.0]
[1719240883817,30.73,128.14,128.06,106.5946]
[1719240884021,46.98,128.13,128.06,106.5946]
[1719240884220,30.73,128.14,128.06,106.5946]
[1719240884440,45.0,128.13,128.08,100.0]
[1719240884724,0.78039645,128.15,128.08,100.0]
[1719240885807,0.78039645,128.15,128.1,100.0]
[1719240887108,45.78039645,128.15,128.1,100.0]
[1719240887323,45.78039645,128.15,128.07,100.0]
[1719240887624,45.78039645,128.15,128.09,100.0]
[1719240887813,0.78039645,128.15,128.11,100.0]
[1719240889616,0.78039645,128.15,128.13,100.0]
[1719240891426,0.78039645,128.15,128.11,100.0]
[1719240893319,0.78039645,128.15,128.13,100.0]
[1719240894718,0.78039645,128.15,128.09,100.0]
[1719240896528,45.78039645,128.15,128.09,100.0]
[1719240896916,30.73,128.12,128.06,100.0]
[1719240897355,30.73,128.12,128.08,100.0]
[1719240898256,30.73,128.12,128.06,100.0]
[1719240898543,45.0,128.11,128.04,100.0]
[1719240899319,30.73,128.08,128.02,115.4849]
[1719240899528,30.73,128.08,128.0,100.0]
[1719240899935,45.0,128.07,128.0,100.0]
[1719240900426,45.0,128.07,127.98,100.0]
[1719240900427,30.73,128.04,127.98,100.0]
[1719240900620,0.78039645,128.0,127.98,100.0]
[1719240901737,0.78039645,128.0,127.96,6.2085]
[1719240901939,0.78039645,128.0,127.99,100.0]
[1719240903851,0.78039645,128.0,127.96,6.2085]
[1719240904032,0.78039645,128.0,127.97,100.0]
[1719240904430,0.78039645,128.0,127.99,100.0]
[1719240908463,38.87741586,128.1,128.05,100.0]
[1719240908655,30.73,128.1,128.05,100.0]
[1719240909364,8.14567325,128.12,128.07,100.0]
[1719240909543,10.8241,128.15,128.07,100.0]
[1719240910451,10.8241,128.15,128.1,100.0]
[1719240912640,39.047852,128.2,128.13,100.0]
[1719240912641,30.73,128.18,128.13,100.0]
[1719240913045,30.73,128.18,128.11,100.0]
[1719240913236,30.73,128.18,128.09,100.0]
[1719240913426,30.73,128.18,128.12,100.0]
[1719240913624,30.73,128.18,128.1,100.0]
[1719240914030,45.0,128.17,128.1,100.0]
[1719240914342,45.0,128.17,128.08,100.0]
[1719240914743,45.0,128.17,128.12,100.0]
[1719240915049,45.0,128.17,128.08,100.0]
[1719240915251,45.0,128.17,128.06,6.6571]
[1719240915252,30.73,128.14,128.06,106.6571]
[1719240915437,45.0,128.13,128.04,100.0]
[1719240915627,45.0,128.13,128.06,100.0]
[1719240915833,45.0,128.13,128.04,100.0]
[1719240916043,45.0,128.13,128.07,100.0]
[1719240916936,30.73,128.14,128.07,100.0]
[1719240917145,30.73,128.16,128.09,100.0]
[1719240917354,45.0,128.15,128.09,100.0]
[1719240917556,45.0,128.15,128.07,100.0]
[1719240917873,30.73,128.12,128.07,100.0]
[1719240918366,45.0,128.11,128.05,100.0]
[1719240918536,45.0,128.11,128.03,106.2479]
[1719240919341,45.0,128.11,128.03,100.0]
[1719240919758,45.0,128.11,128.01,100.0]
[1719240920361,45.0,128.11,128.03,100.0]
[1719240920540,0.78106694,128.04,128.03,100.0]
[1719240922866,10.8241,128.15,128.08,100.0]
[1719240923060,30.73,128.16,128.11,100.0]
[1719240925054,30.73,128.16,128.09,100.0]
[1719240925246,45.0,128.15,128.09,100.0]
[1719240925657,45.0,128.15,128.07,100.0]
[1719240926088,45.0,128.15,128.09,100.0]
[1719240926864,45.0,128.15,128.05,100.0]
[1719240927265,52.8036,128.15,128.05,100.0]
[1719240927474,45.0,128.15,128.05,100.0]
[1719240927769,45.0,128.15,128.08,100.0]
[1719240929451,45.0,128.15,128.06,100.0]
[1719240929646,45.0,128.15,128.08,100.0]
[1719240929963,45.0,128.15,128.1,100.0]
[1719240930473,38.87250761,128.16,128.1,100.0]
[1719240930659,30.73,128.16,128.08,100.0]
[1719240931047,30.73,128.16,128.1,100.0]
[1719240931444,30.73,128.16,128.08,100.0]
[1719240931653,45.0,128.15,128.08,100.0]
[1719240932465,45.0,128.15,128.06,100.0]
[1719240933390,45.0,128.15,128.08,100.0]
[1719240934251,45.0,128.15,128.06,100.0]
[1719240934845,45.0,128.15,128.08,100.0]
[1719240935457,45.0,128.15,128.1,100.0]
[1719240935667,30.73,128.16,128.1,100.0]
[1719240935971,30.73,128.16,128.12,100.0]
[1719240936469,30.73,128.16,128.1,100.0]
[1719240937845,45.0,128.15,128.1,100.0]
[1719240938067,45.0,128.15,128.08,100.0]
[1719240938272,30.73,128.16,128.08,100.0]
[1719240938765,45.0,128.15,128.08,100.0]
[1719240939469,30.73,128.12,128.02,100.0]
[1719240939775,45.0,128.11,128.02,100.0]
[1719240940588,0.78112795,128.03,128.02,100.0]
[1719240944775,0.78112795,128.03,127.97,22.2275]
[1719240944976,0.78112795,128.03,127.97,6.4228]
[1719240945176,0.78112795,128.03,127.94,16.0298]
[1719240945479,0.78112795,128.03,127.95,100.0]
[1719240945683,45.78112795,128.03,127.95,100.0]
[1719240946259,0.78112795,128.03,127.97,100.0]
[1719240946476,0.78112795,128.03,127.98,1.11380607]
[1719240947560,0.78112795,128.03,127.99,100.0]
[1719240949374,0.78112795,128.03,127.94,16.0298]
[1719240949375,0.78112795,128.03,128.01,100.0]
[1719240953882,0.78112795,128.03,127.99,100.0]
[1719240954383,0.78112795,128.03,128.01,100.0]
[1719240954981,0.78112795,128.03,127.98,100.0]
[1719240955489,0.78112795,128.03,128.0,100.0]
[1719240957188,0.78112795,128.03,127.98,100.0]
[1719240957771,0.78112795,128.03,127.99,1.56014141]
[1719240958482,0.78112795,128.03,128.01,100.0]
[1719240958691,0.78112795,128.03,128.02,1.5597758]
[1719240959387,0.78112795,128.03,128.01,100.0]
[1719240960674,0.78112795,128.02,128.01,100.0]
[1719240964092,11.6049,128.11,128.07,100.0]
[1719240964279,12.3858,128.15,128.07,100.0]
[1719240964488,31.262887,128.13,128.07,100.0]
[1719240964990,30.73,128.12,128.05,100.0]
[1719240965184,85.4453,128.12,128.03,100.0]
[1719240965391,45.0,128.11,128.03,100.0]
[1719240965587,91.91,128.11,128.03,100.0]
[1719240965789,91.91,128.11,128.01,100.0]
[1719240965790,99.7158,128.11,128.01,100.0]
[1719240966090,59.2958,128.1,128.01,100.0]
[1719240966290,30.73,128.08,128.01,100.0]
[1719240966871,30.73,128.08,128.03,100.0]
[1719240967271,30.73,128.08,128.0,6.0012]
[1719240967272,77.64,128.08,128.0,106.0012]
[1719240967492,77.64,128.08,128.02,100.0]
[1719240967695,77.64,128.08,128.0,106.0012]
[1719240967878,77.64,128.08,128.0,100.0]
[1719240968795,30.73,128.08,128.02,100.0]
[1719240969998,30.73,128.08,128.0,100.0]
[1719240970575,30.73,128.08,128.02,100.0]
[1719240971885,77.64,128.08,127.98,100.0]
[1719240972102,43.1158,128.1,127.98,100.0]
[1719240972103,77.64,128.04,127.98,100.0]
[1719240972288,45.0,128.03,127.95,100.0]
[1719240972884,45.0,128.03,127.97,100.0]
[1719240973283,45.0,128.03,127.95,100.0]
[1719240974097,77.64,128.04,127.95,100.0]
[1719240974987,45.0,128.03,127.95,100.0]
[1719240975685,77.64,128.0,127.93,100.0]
[1719240975903,59.2958,127.99,127.91,100.0]
[1719240977500,59.2958,127.99,127.93,100.0]
[1719240977795,12.3858,127.99,127.93,100.0]
[1719240978188,59.2958,127.99,127.91,100.0]
[1719240978588,91.91,127.98,127.91,100.0]
[1719240980695,0.78179971,127.92,127.91,100.0]
[1719240982488,59.2958,128.03,127.95,100.0]
[1719240982892,59.2958,128.03,127.97,100.0]
[1719240983398,67.1066,128.03,127.93,100.0]
[1719240983596,46.91,128.01,127.93,100.0]
[1719240983801,91.91,128.0,127.93,100.0]
[1719240984011,91.91,128.0,127.91,100.0]
[1719240986614,46.91,127.98,127.91,100.0]
[1719240986811,88.8973,127.97,127.89,100.0]
[1719240987397,135.8073,127.97,127.89,100.0]
[1719240987807,135.8073,127.97,127.87,115.1492]
[1719240988015,135.8073,127.97,127.87,100.0]
[1719240988198,30.73,127.93,127.87,100.0]
[1719240988521,77.64,127.93,127.84,100.0]
[1719240989097,45.0,127.92,127.84,100.0]
[1719240989292,91.91,127.92,127.84,100.0]
[1719240989491,30.73,127.93,127.86,100.0]
[1719240990208,77.64,127.93,127.84,100.0]
[1719240990518,91.91,127.92,127.84,100.0]
[1719240991505,30.73,127.93,127.87,100.0]
[1719240992015,77.64,127.93,127.87,100.0]
[1719240992214,45.0,127.92,127.85,100.0]
[1719240993119,60.0773,127.91,127.83,100.0]
[1719240993422,46.91,127.88,127.81,100.0]
[1719240994399,45.0,127.87,127.81,100.0]
[1719240994719,45.0,127.87,127.79,100.0]
[1719240994916,13.1673,127.85,127.78,100.0]
[1719240995299,43.8973,127.85,127.78,100.0]
[1719240996306,43.8973,127.85,127.81,100.0]
[1719240996711,30.73,127.85,127.81,100.0]
[1719240996908,30.73,127.85,127.77,100.0]
[1719240997513,30.73,127.85,127.75,121.7485]
[1719240997826,13.1673,127.82,127.75,100.0]
[1719240998611,13.1673,127.82,127.77,100.0]
[1719240999427,13.1673,127.85,127.77,100.0]
[1719241000625,0.78265634,127.78,127.77,100.0]
[1719241001341,30.73,127.88,127.82,100.0]
[1719241002333,46.91,127.87,127.8,100.0]
[1719241003027,30.73,127.88,127.82,100.0]
[1719241003631,30.73,127.88,127.84,100.0]
[1719241003833,13.1673,127.89,127.84,100.0]
[1719241004418,85.78950667,127.93,127.87,100.0]
[1719241004419,13.9497,127.92,127.87,100.0]
[1719241004618,30.73,127.93,127.88,100.0]
[1719241004824,30.73,127.93,127.84,106.2651]
[1719241005329,30.73,127.93,127.86,100.0]
[1719241005521,13.9497,127.95,127.89,100.0]
[1719241006137,8.14757452,127.97,127.89,100.0]
[1719241006432,91.5897,127.98,127.87,100.0]
[1719241006632,8.1462769,127.97,127.87,100.0]
[1719241006937,46.91,127.97,127.87,100.0]
[1719241007438,46.91,127.97,127.9,100.0]
[1719241007637,46.91,127.97,127.88,100.0]
[1719241008245,46.91,127.97,127.91,100.0]
[1719241008409,83.55564309,127.98,127.91,100.0]
[1719241008616,52.82564309,127.98,127.91,100.0]
[1719241009142,52.82564309,127.98,127.93,100.0]
[1719241009314,52.82564309,127.98,127.88,100.0]
[1719241009315,99.73564309,127.98,127.88,100.0]
[1719241009511,130.46564309,127.98,127.88,100.0]
[1719241010550,22.09564309,127.98,127.92,100.0]
[1719241010841,30.73,127.99,127.95,100.0]
[1719241013860,30.73,127.99,127.91,100.0]
[1719241014347,30.73,127.99,127.93,100.0]
[1719241014547,30.73,127.95,127.9,100.0]
[1719241014743,30.73,127.99,127.9,100.0]
[1719241015236,30.73,127.92,127.85,100.0]
[1719241015442,61.46,127.92,127.88,100.0]
[1719241015640,30.73,127.92,127.88,100.0]
[1719241016538,30.73,127.92,127.9,100.0]
[1719241017051,30.73,127.95,127.9,100.0]
[1719241017255,30.73,127.95,127.88,100.0]
[1719241017639,30.73,127.95,127.86,100.0]
[1719241018645,30.73,127.95,127.88,100.0]
[1719241018828,30.73,127.95,127.86,100.0]
[1719241019435,30.73,127.95,127.89,100.0]
[1719241020436,45.0,127.94,127.87,100.0]
[1719241020636,0.78204427,127.89,127.87,100.0]
[1719241024453,8.14672384,127.99,127.95,100.0]
[1719241024644,30.73,127.99,127.95,100.0]
[1719241024852,30.73,127.99,127.93,100.0]
[1719241025365,30.73,127.99,127.95,100.0]
[1719241026259,30.73,127.99,127.97,100.0]
[1719241026566,46.022705,128.01,127.94,100.0]
[1719241026759,46.022705,128.01,127.96,100.0]
[1719241026760,30.73,127.99,127.96,100.0]
[1719241029065,30.73,127.99,127.98,100.0]
[1719241029366,30.73,128.04,128.01,100.0]
[1719241029549,14.7315,128.12,128.0,100.0]
[1719241029753,30.73,128.07,128.02,100.0]
[1719241029955,30.73,128.09,128.02,100.0]
[1719241030150,30.73,128.08,128.02,100.0]
[1719241030570,30.73,128.08,127.98,6.0262]
[1719241030571,30.73,128.08,128.04,100.0]
[1719241031252,30.73,128.08,128.02,100.0]
[1719241031572,61.46,128.04,128.01,100.0]
[1719241031768,61.46,128.04,127.98,106.0262]
[1719241031963,30.73,128.04,128.0,100.0]
[1719241032182,45.0,128.03,128.0,100.0]
[1719241032866,61.46,128.04,128.0,100.0]
[1719241033060,30.73,128.04,128.0,100.0]
[1719241033566,8.14467041,128.11,128.02,100.0]
[1719241033772,30.73,128.07,128.04,100.0]
[1719241034571,30.73,128.1,128.04,100.0]
[1719241035762,45.0,128.09,128.04,100.0]
[1719241036159,30.73,128.1,128.04,100.0]
[1719241036667,30.73,128.1,128.06,100.0]
[1719241037460,14.7315,128.12,128.04,100.0]
[1719241037661,30.73,128.08,128.04,100.0]
[1719241038053,30.73,128.08,128.06,100.0]
[1719241038256,30.73,128.08,128.03,100.0]
[1719241038457,30.73,128.09,128.03,100.0]
[1719241038682,45.0,128.08,128.03,100.0]
[1719241039075,45.0,128.08,128.05,100.0]
[1719241039364,30.73,128.09,128.07,100.0]
[1719241040775,0.78082299,128.08,128.07,100.0]
[1719241044171,0.78082299,128.08,128.07,116.5347]
[1719241047961,30.73,128.16,128.12,100.0]
[1719241048159,45.4615,128.19,128.14,100.0]
[1719241048397,46.242,128.22,128.14,100.0]
[1719241048559,108.210659,128.22,128.14,100.0]
[1719241048756,108.210659,128.22,128.1,106.183]
[1719241049067,77.480659,128.22,128.13,100.0]
[1719241049273,30.73,128.17,128.13,100.0]
[1719241049705,30.73,128.17,128.12,100.0]
[1719241050180,30.73,128.14,128.08,100.0]
[1719241050381,45.0,128.13,128.1,100.0]
[1719241050559,45.0,128.13,128.12,100.0]
[1719241050760,71.36,128.13,128.12,100.0]
[1719241051168,26.36,128.13,128.12,100.0]
[1719241051385,71.36,128.13,128.12,100.0]
[1719241051976,71.36,128.13,128.1,100.0]
[1719241052181,26.36,128.11,128.07,23.0689]
[1719241052371,45.0,128.13,128.09,100.0]
[1719241052572,26.36,128.1,128.09,100.0]
[1719241054595,26.36,128.13,128.12,100.0]
[1719241054776,100.0,128.2,128.14,100.0]
[1719241055095,26.36,128.15,128.14,100.0]
[1719241056779,26.36,128.15,128.13,6.2159]
[1719241056971,26.36,128.15,128.11,100.0]
[1719241057176,26.36,128.16,128.13,100.0]
[1719241057373,26.36,128.16,128.15,100.0]
[1719241057576,100.0,128.2,128.15,100.0]
[1719241057773,26.36,128.17,128.15,100.0]
[1719241059585,26.36,128.17,128.13,115.0748]
[1719241059807,26.36,128.14,128.13,15.0748]
[1719241059988,71.36,128.14,128.13,15.0748]
[1719241060188,71.36,128.14,128.13,115.0748]
[1719241060594,72.14045735,128.14,128.13,115.0748]
[1719241061603,27.14045735,128.14,128.13,115.0748]
[1719241061786,72.14045735,128.14,128.13,115.0748]
[1719241062187,27.14045735,128.14,128.13,115.0748]
[1719241062394,100.0,128.2,128.19,100.0]
[1719241062905,100.0,128.2,128.17,100.0]
[1719241063111,26.36,128.18,128.17,100.0]
[1719241063609,100.0,128.2,128.17,100.0]
[1719241063810,45.0,128.19,128.17,100.0]
[1719241064105,100.0,128.2,128.19,100.0]
[1719241064682,100.0,128.2,128.19,116.3256]
[1719241065209,83.3334,128.2,128.19,116.3256]
[1719241066214,36.667,128.2,128.19,116.3256]
[1719241066389,3.3338,128.2,128.19,136.6656]
[1719241066702,16.6298,128.31,128.27,100.0]
[1719241067111,30.72,128.3,128.27,100.0]
[1719241067482,16.6298,128.31,128.27,100.0]
[1719241067690,30.72,128.34,128.29,100.0]
[1719241067992,30.72,128.34,128.31,100.0]
[1719241068204,15.9719,128.36,128.33,100.0]
[1719241068393,6.3428,128.39,128.33,100.0]
[1719241068594,37.0628,128.39,128.35,100.0]
[1719241068797,37.0628,128.39,128.31,100.0]
[1719241069308,37.0628,128.39,128.33,100.0]
[1719241069506,37.0628,128.39,128.29,100.0]
[1719241069805,30.72,128.35,128.32,100.0]
[1719241070008,6.3428,128.39,128.32,100.0]
[1719241070210,6.3428,128.39,128.35,100.0]